Cogmind - Beta 9.5 @@@ ROGUE MODE // 2020.04.13 @ 22:13:09 Player: Delget Result: Destroyed by Y-45 Defender with Beam Rifle Performance ------------- Evolutions (1) 500 Regions Visited (2) 400 Robots Destroyed (13) 65 Value Destroyed (388) 388 Prototype IDs (2) 40 Alien Tech Used (0) 0 Bonus (0) 0 TOTAL SCORE: 1393 Bonus ------- None Cogmind --------- Core Integrity 0/400 Matter 151/300 Energy 23/160 System Corruption 1% Temperature Cool (9) Movement Core (1200) Ox23 Location -9/Materials Parts ------- > --- POWER (1) -------- Light Nuclear Core > --- PROPULSION (2) --- (None) > --- UTILITY (4) ------ High-capacity Storage Unit High-capacity Storage Unit Weapon Shielding > --- WEAPON (2) ------- (None) > --- INVENTORY (20) --- Ion Engine Ion Engine Heat Sink Large Storage Unit Large Storage Unit Weapon Shielding Peak State ------------ > --- POWER ------------ Light Nuclear Core > --- PROPULSION ------- Light Treads Light Treads > --- UTILITY ---------- High-capacity Storage Unit High-capacity Storage Unit Core Shielding Weapon Shielding > --- WEAPON ----------- EM Pulse Gun Assault Rifle > --- INVENTORY -------- Ion Engine Ion Engine Ion Engine Heat Sink Large Storage Unit Large Storage Unit Core Shielding Weapon Shielding Weapon Shielding Small Laser Assault Rifle Light Assault Rifle Light Cannon Grenade Launcher [Rating: 12] Favorites ----------- Power Ion Engine Engine Ion Engine Power Core Light Nuclear Core Propulsion Light Treads Treads Light Treads Utility Large Storage Unit Device Heat Sink Storage Large Storage Unit Protection Weapon Shielding Weapon Assault Rifle Energy Gun EM Pulse Gun Ballistic Gun Assault Rifle Ballistic Cannon Light Cannon Launcher Grenade Launcher Build | -11 -10 -9 ------- Run | Scr Mat Mat Slots Evolved 2 | . . 2 Power . | . . . Propulsion . | . . . Utility 2 | . . 2 Weapon . | . . . Parts Attached 24 | 6 4 14 Power 4 | 1 . 3 Engine 2 | 1 . 1 Core 2 | . . 2 Reactor . | . . . Propulsion 2 | 2 . . Treads 2 | 2 . . Leg . | . . . Wheel . | . . . Hover . | . . . Flight . | . . . Utility 11 | 1 4 6 Device 1 | . 1 . Storage 5 | 1 3 1 Processor . | . . . Hackware . | . . . Protection 5 | . . 5 Artifact . | . . . Weapon 7 | 2 . 5 Energy Gun 2 | 1 . 1 Energy Cannon . | . . . Ballistic Gun 3 | 1 . 2 Ballistic Cannon 1 | . . 1 Launcher 1 | . . 1 Special Weapon . | . . . Impact Weapon . | . . . Slashing Weapon . | . . . Piercing Weapon . | . . . Special Melee Weapon . | . . . Unidentified Prototypes . | . . . Parts Lost 13 | . . 13 Power 1 | . . 1 Propulsion 2 | . . 2 Utility 3 | . . 3 Weapon 7 | . . 7 Highest Loss Streak 13 | . . 13 Average Slot Usage (%) 94 | . 97 84 Engine 12 | . 14 8 Treads 25 | . 28 14 Device 1 | . 1 . Storage 23 | . 23 22 Protection 3 | . . 17 Energy Gun 12 | . 14 8 Ballistic Gun 13 | . 14 10 Naked Turns . | . . . Heaviest Build 76 | 13 57 76 Greatest Support 40 | 40 40 40 Greatest Overweight (x) 25 | . 1 25 Average Overweight (x) . | . . 1 Largest Inventory Capacity 26 | 6 18 26 Average Capacity 13 | 5 13 20 Most Carried 16 | 4 16 16 Average Carried 8 | 2 8 13 Final Capacity 20 | 6 18 20 Final Carried 16 | 2 16 6 Class Distribution -------------------- 86% | Mutant 13% | Hauler-Mutant Dominant Class ---------------- Mutant | -10/Materials Hauler-Mutant | -9/Materials Resources | -11 -10 -9 ----------- Run | Scr Mat Mat Matter Collected 359 | 187 172 . Remotely . | . . . Salvage Created 456 | . 383 73 Parts 29 | . 24 5 Haulers Intercepted . | . . . Recyclers Shooed . | . . . Parts Field Recycled . | . . . Retrieved Matter . | . . . Parts Self-Destructed . | . . . Prevented . | . . . Kills | -11 -10 -9 ------- Run | Scr Mat Mat Combat Hostiles Destroyed 12 | . 10 2 Guns 11 | . 10 1 AOE 1 | . . 1 Classes Destroyed 3 | . 3 . Watcher 1 | . 1 . Swarmer 3 | . 3 . Grunt 9 | . 7 2 Best Kill Streak 5 | . 5 1 Combat Bots Only 4 | . 4 1 Max Kills in Single Turn 1 | . 1 1 Gunslinging . | . . . Exploded 1 | . . 1 Melee . | . . . Uniques/NPCs Destroyed . | . . . Combat | -11 -10 -9 -------- Run | Scr Mat Mat Damage Taken 2022 | . 303 1719 Core 442 | . 36 406 Absorbed by Shields . | . . . Core Remaining (%) 92 | 100 85 . Volleys Fired 39 | . 23 16 Largest 2 | . 2 2 Hottest 60 | . 60 60 Shots Fired 73 | . 46 27 Gun 67 | . 46 21 Cannon 5 | . . 5 Launcher 1 | . . 1 Special . | . . . Kinetic 42 | . 23 19 Thermal 2 | . . 2 Explosive 1 | . . 1 Electromagnetic 28 | . 23 5 Robot Hit Streak 14 | . 10 14 Robot Miss Streak 2 | . 2 2 Penetration Max . | . . . Secondary Targets 2 | . 2 . Max Gunslinging Chain 1 | . 1 . Shots Hit Robots 54 | . 31 23 Core Hits 24 | . 16 8 Critical Hits . | . . . Critical Kills . | . . . Critical Parts Destroyed . | . . . Melee Attacks . | . . . Impact . | . . . Slashing . | . . . Piercing . | . . . Sneak Attacks . | . . . Combat Hostiles . | . . . Follow-up Attacks . | . . . Damage Inflicted 777 | . 362 415 Guns 591 | . 362 229 Cannons 79 | . . 79 Explosions 107 | . . 107 Melee . | . . . Ramming . | . . . Kinetic 367 | . 133 234 Thermal 21 | . . 21 Explosive 107 | . . 107 Electromagnetic 282 | . 229 53 Impact . | . . . Slashing . | . . . Piercing . | . . . Highest Corruption 1 | . 1 1 Average Corruption 1 | . 1 1 Corruption Purged . | . . . Overload Shots . | . . . Overflow Damage . | . . . Projectiles . | . . . Explosions . | . . . Melee . | . . . Knockbacks 2 | . . 2 Impact . | . . . Kinetic 2 | . . 2 Secondary . | . . . Self-Inflicted Damage 16 | . . 16 Shots 1 | . . 1 Rammed . | . . . Targets Rammed . | . . . Kicked . | . . . Crushed . | . . . Highest Temperature 142 | . 36 142 Average Temperature 34 | . 12 52 Received Heat Transfer 816 | . 108 708 Siege Activations . | . . . Robots Corrupted . | . . . Combat Hostiles . | . . . Parts Fried . | . . . Impact Corruptions . | . . . Robots Melted . | . . . Combat Hostiles . | . . . Parts Melted . | . . . Heat Transferred 50 | . . 50 Parts Sabotaged . | . . . Parts Stolen . | . . . Parts Stripped . | . . . Power Chain Reactions . | . . . Missiles Intercepted . | . . . Alert | -11 -10 -9 ------- Run | Scr Mat Mat Peak Influence 298 | . 298 64 Average Influence 98 | . 126 41 Maximum Alert Level 1 | . 1 . Low Security (%) 85 | 100 79 100 Level 1 14 | . 20 . Level 2 . | . . . Level 3 . | . . . Level 4 . | . . . Level 5 . | . . . High Security . | . . . Max Security . | . . . Squads Dispatched 4 | . 2 2 Investigation 2 | . 1 1 Extermination . | . . . Reinforcement 2 | . 1 1 Assault . | . . . Garrison . | . . . Intercept . | . . . Construction Impeded . | . . . Haulers Reinforced . | . . . Stealth | -11 -10 -9 --------- Run | Scr Mat Mat Distress Signals . | . . . Communications Jammed . | . . . Distress Signals . | . . . Times Spotted 25 | . 15 10 Peak Tracking Total 8 | . 3 8 Tactical Retreats 1 | . . 1 Traps | -11 -10 -9 ------- Run | Scr Mat Mat Traps Triggered . | . . . Indirectly . | . . . Trap Hack Attempts . | . . . Triggered . | . . . Disarmed . | . . . Reprogrammed . | . . . Reused . | . . . Traps Extracted . | . . . Installed . | . . . Triggered . | . . . Machines | -11 -10 -9 ---------- Run | Scr Mat Mat Machines Disabled 1 | . 1 . Max in Single Turn 1 | . 1 . Machines Sabotaged . | . . . Garrisons Compromised . | . . . Overloaded Fab Kills . | . . . Fab Network Shutdowns . | . . . Hacking | -11 -10 -9 --------- Run | Scr Mat Mat Machines Accessed 3 | . 2 1 Terminals 2 | . 2 . Fabricators . | . . . Repair Stations . | . . . Recycling Units . | . . . Scanalyzers 1 | . . 1 Garrison Access . | . . . Total Hacks 13 | . 7 6 Successful 12 | . 6 6 Failed 1 | . 1 . Catastrophic . | . . . Database Lockouts . | . . . Manual . | . . . Terminals 7 | . 7 . Fabricators . | . . . Repair Stations . | . . . Recycling Units . | . . . Scanalyzers 6 | . . 6 Garrison Access . | . . . Terminal Hacks 6 | . 6 . Record 4 | . 4 . Prototype ID Bank 1 | . 1 . Emergency Access Points 1 | . 1 . Fabricator Hacks . | . . . Repair Station Hacks . | . . . Recycling Unit Hacks . | . . . Scanalyzer 6 | . . 6 Insert Component 4 | . . 4 Analyze 2 | . . 2 Garrison Access Hacks . | . . . Unauthorized Hacks . | . . . Terminals . | . . . Fabricators . | . . . Repair Stations . | . . . Recycling Units . | . . . Scanalyzers . | . . . Garrison Access . | . . . Data Cores Recovered . | . . . Used . | . . . Hacking Detections 3 | . 2 1 Full Trace Events 3 | . 2 1 Feedback Events 1 | . 1 . Corruption 1 | . 1 . Feedback Blocked . | . . . Robot Schematics Acquired . | . . . Robots Built . | . . . Matter . | . . . Time . | . . . Total Robot Build Rating . | . . . Part Schematics Acquired 1 | . . 1 Parts Built . | . . . Matter . | . . . Time . | . . . Total Part Build Rating . | . . . Parts Repaired . | . . . Time . | . . . Parts Recycled . | . . . Recycled Matter . | . . . Retrieved Matter . | . . . Retrieved Components . | . . . Parts Scanalyzed 2 | . . 2 Part Schematics Acquired 1 | . . 1 Parts Damaged . | . . . Bothacking | -11 -10 -9 ------------ Run | Scr Mat Mat Used RIF Installer . | . . . Robots Hacked . | . . . Non-combat . | . . . Combat . | . . . Robot Hacks Applied . | . . . Relay Couplers Released . | . . . Robots Rewired . | . . . Allies Hacked . | . . . Hacks Repelled . | . . . Allies | -11 -10 -9 -------- Run | Scr Mat Mat Total Allies . | . . . Largest Group . | . . . Highest-Rated Group . | . . . Highest-Rated Ally . | . . . Total Orders . | . . . Ally Attacks . | . . . Total Damage . | . . . Kills . | . . . Allies Corrupted . | . . . Allies Melted . | . . . Intel | -11 -10 -9 ------- Run | Scr Mat Mat Robot Analysis Total . | . . . Derelict Logs Recovered . | . . . Drone Launches . | . . . Drone Recoveries . | . . . Exploration | -11 -10 -9 ------------- Run | Scr Mat Mat Turns Passed 954 | 110 687 157 Spaces Moved 466 | 73 344 49 Core 18 | 17 . 1 Treads 448 | 56 344 48 Legs . | . . . Wheels . | . . . Hover . | . . . Flight . | . . . Fastest Speed 50 | 50 160 180 Average Speed 170 | 134 173 202 Slowest Speed 1300 | 160 180 1300 Overloaded Moves . | . . . Propulsion Burnouts . | . . . Robots Hopped . | . . . Cave-ins Triggered . | . . . Exploration Rate (%) 24 | 4 61 8 Regions Visited 2 Branch Regions . Pre-discovered Areas . | . . . Known Exits Taken . | . . . Unknown Exits Taken 2 | 1 1 . Scrap Searched . | . . . Spaces Dug . | . . . Terrain Destroyed 8 | . . 8 Melee . | . . . Projectile . | . . . AOE 8 | . . 8 Actions | -11 -10 -9 --------- Run | Scr Mat Mat Total 553 | 85 388 80 Wait . | . . . Move 464 | 72 343 49 Hop . | . . . Pick Up 23 | 7 16 . Fast Attach 1 | 1 . . Attach 17 | 5 1 11 Detach 1 | . . 1 Swap 6 | . 3 3 Drop 2 | . 2 . Fire 39 | . 23 16 Melee . | . . . Ram . | . . . Kick . | . . . Crush . | . . . Escape Stasis . | . . . Rewire . | . . . Trap . | . . . Miscellaneous . | . . . Route ------- -11/Scrapyard -10/Materials (discovered 3 exits: *Mat x2 / [*Min]) -9/Materials History --------- Turn | Location | Event 8 | -11/Scrapyard | Discovered new exit (range 15) 111 | -11/Scrapyard | Entered Materials 294 | -10/Materials | Discovered new exit (range 12) 300 | -10/Materials | Build established: Mutant 429 | -10/Materials | Discovered new exit (range 14) 673 | -10/Materials | Discovered new exit (range 11) 798 | -10/Materials | Entered another Materials area 798 | -9/Materials | Evolved 2 slots: Utility x2 925 | -9/Materials | Core integrity fell below 50% 943 | -9/Materials | Core integrity fell below 20% 955 | -9/Materials | Destroyed by Y-45 Defender with Beam Rifle Last Messages --------------- 00931_ U-05 Engineer lays Concrete. 00932_ U-05 Engineer builds a Wall. 00932_ K-01 Serf cleans the Purification Channel. 00932_ U-05 Engineer lays Concrete. 00936_ K-01 Serf cleans the Purification Channel. 00936_ U-05 Engineer builds a Wall. 00936_ U-05 Engineer lays Concrete. 00937_ Lgt. Assault Rifle destroyed. 00939_ U-05 Engineer builds a Wall. 00940_ K-01 Serf cleans the Purification Channel. 00941_ Lgt. Cannon destroyed. 00944_ U-05 Engineer builds a Wall. 00945_ U-05 Engineer lays Concrete. 00945_ G-47 Trooper destroyed. 00946_ Assault Rifle destroyed. 00948_ G-34 Mercenary destroyed. 00949_ K-01 Serf collects debris. 00953_ Sml. Laser destroyed. 00953_ U-05 Engineer lays Concrete. 00955_ Core Shielding destroyed. Map ----- +----------------------------------------------------+ | ????????????????????????????????????????????? | | ????????????????????????????????????????????? | | ????????????????????????????????????????????? | | ????????????????????????????????????????????? | | ????????????????????????????????????????????? | | ????????????????????????????????????????????? | | ????????????????????????????????????????????? | | ????????????????????????????????????????????? | | ????????????????????????????????????????????? | | ????????????????????????????????????????????? | | ????????????????????? ?????????????????????? | | ???????????????? ???? +????????????????????? | | ????????????? ??? #????????????????????? | | ??????????? "" ####?????????????????? | | ??????????+ o""" ??????????????????? | | ??????????# " ??????????????????? | | ??????????# ???????????????????? | | ???????? ## ???????????????????? | | ???????? + ????????????????????? | | ?????????# ????????????????????? | | ?????????# u k #????????????????????? | | ?????????# a #????????????????????? | | ?????????# *g=##???????????????????? | | ?????????# %*!##???????????????????? | | ?????????# %%|##???????????????????? | | ?????????# Y@u ##???????????????????? | | ????????????####+####bg#######??????????????? | | ?????????????# # u= #??????????????? | | ????????????# """ # t #??????????????? | | ?????????????# "Y"?# """ """ #??????????????? | | ?????????????# " ??# """ """ #??????????????? | | ?????????????# ???# """ """ #??????????????? | | ?????????????? ???# t ########???????? | | ?????????????# ????# / #? | | ?????????????#?????# # ? | | ?????????????###########+##### ? | | ?????????????# ?? | | ?????????????# ?? | | ?????????????# ##### #??? | | ?????????????####+####### ########????????? | | ?????????????# #???? #???????????????? | | ?????????????# #???? #???????????????? | | ?????????????# "" #???? #???????????????? | | ?????????????# """ #???? #???????????????? | | ?????????????# S" #???? +???????????????? | | ?????????????# #???? #???????????????? | | ?????????????########???? #???????????????? | | ?????????????????????????? #???????????????? | | ?????????????????????????? #???????????????? | | ?????????????????????????? #???????????????? | +----------------------------------------------------+ Best States ------------- Heat Dissipation 35 Energy Generation 10 Energy Capacity 250 Matter Stores 300 Matter Capacity 300 Sight Range 16 Terrain Scan Density 10 Core Shielding 20 Weapon Shielding 33 Evasion (%) 50 Recoil Reduction 2 Item Schematics ----------------- Lrg. Storage Unit | -9/Materials | Scanalyzed Robot Schematics ------------------ None Fabricated ------------ Nothing Alien Tech Used ----------------- None Achievements -------------- None Challenges ------------ None Game ------ Seed RemoteReactionNanovents Manual? 0 Play Time 00:15:36 Cumulative 12.5 hours Start 2020.04.13 @ 22:00:24 End 2020.04.13 @ 22:13:09 Sessions 1 Manual Loads 0 Difficulty Rogue Special Mode None Game No. 28 Rogue 28 Adventurer 0 Explorer 0 Win Type - Total 0 Types 0/0/0/0/0/0/0 Lore% 7 Gallery% 14 Achievement% 12 Wizard Run 0 Options --------- ASCII 0 Keyboard 0 Movement Mouse Keybinds 0 Fullscreen 2 Font 24/Cog Map View 76x50 Tactical HUD 1 Map Filters NONE Filters NONE Steam 1 RUN: 9caf6034-f156-404e-a330-48ade6fdfc27